fUSD/lending_fUSD_20240720
["ID","MTS","AMOUNT","RATE_DAILY","PERIOD"]
[332685071,1721448632055,-9743.5273487,0.000138,2]
[332685072,1721448632066,-607.95818831,0.000138,2]
[332685084,1721448637567,-1949.91783652,0.000138,2]
[332685085,1721448637579,-519.980028,0.000138,2]
[332685086,1721448637591,-774.91831638,0.000138,2]
[332685087,1721448637606,-1153.0,0.000138,2]
[332685088,1721448637617,-4800.900707,0.000138,2]
[332685089,1721448637629,-43457.50405715,0.000138,2]
[332685090,1721448637638,-153.05898662,0.000138,2]
[332685091,1721448637648,-1434.01115645,0.000138,2]
[332685092,1721448637657,-171.88638291,0.000138,2]
[332685093,1721448637666,-340.58367351,0.00013825,2]
[332685094,1721448637675,-176.59635891,0.00013859,2]
[332685095,1721448637687,-188.45670038,0.00013859,2]
[332685096,1721448637696,-963.30205592,0.00013869,2]
[332685097,1721448637707,-6715.26105354,0.00013869,2]
[332685098,1721448637717,-188.15295362,0.0001388,2]
[332685099,1721448637727,-11517.8446642,0.0001388,2]
[332685100,1721448637737,-3839.28155473,0.00013887,2]
[332685101,1721448637747,-3839.28155473,0.00013887,2]
[332685102,1721448637758,-22612.83108965,0.0001389,2]
[332685103,1721448637771,-6874.19597628,0.0001389,2]
[332685104,1721448637783,-7247.88125866,0.0001389,2]
[332685105,1721448637797,-7173.35954135,0.0001389,2]
[332685107,1721448637808,-9901.01985224,0.0001389,2]
[332685109,1721448637820,-5085.22599903,0.0001389,2]
[332685111,1721448637831,-5726.34454775,0.0001389,2]
[332685113,1721448637842,-424.88308538,0.0001389,2]
[332685116,1721448637854,-4061.32663476,0.0001389,2]
[332685118,1721448637864,-156.02,0.0001389,2]
[332685120,1721448637874,-156.02,0.0001389,2]
[332685121,1721448637883,-150.52,0.0001389,2]
[332685124,1721448637893,-535.54,0.0001389,2]
[332685126,1721448637904,-300.0,0.0001389,2]
[332685128,1721448637913,-419.95,0.0001389,2]
[332685130,1721448637923,-419.95,0.0001389,2]
[332685132,1721448637932,-419.95,0.0001389,2]
[332685134,1721448637942,-425.27,0.0001389,2]
[332685136,1721448637952,-833.23,0.0001389,2]
[332685138,1721448637961,-425.27,0.0001389,2]
[332685140,1721448637971,-833.23,0.0001389,2]
[332685142,1721448637980,-833.23,0.0001389,2]
[332685143,1721448637989,-833.23,0.0001389,2]
[332685145,1721448637998,-574.41829568,0.0001389,2]
[332685148,1721448638020,-258.81170432,0.0001389,2]
[332685150,1721448638029,-521.71845529,0.0001389,2]
[332685152,1721448638040,-311.51154471,0.0001389,2]
[332685154,1721448638054,-690.68992096,0.0001389,2]
[332685156,1721448638066,-142.54007904,0.0001389,2]
[332685159,1721448638075,-833.23,0.0001389,2]
[332685161,1721448638085,-833.23,0.0001389,2]
[332685163,1721448638095,-618.78,0.0001389,2]
[332685165,1721448638105,-423.4,0.0001389,2]
[332685167,1721448638115,-150.0,0.0001389,2]
[332685169,1721448638126,-418.97,0.0001389,2]
[332685171,1721448638137,-150.0,0.0001389,2]
[332685173,1721448638148,-227.4651143,0.00013896,2]
[332685176,1721448638159,-3631.19182574,0.00013897,2]
[332685178,1721448638168,-753.93874395,0.00013897,2]
[332685180,1721448638178,-237.80840713,0.00013899,2]
[332685181,1721448638187,-500.0,0.00013899,2]
[332685183,1721448638197,-430.41053785,0.00013899,2]
[332685185,1721448638207,-500.0,0.00013899,2]
[332685187,1721448638216,-215.42723097,0.00013899,2]
[332685188,1721448638226,-227.4651143,0.00013899,2]
[332685189,1721448638236,-5140.359,0.000139,2]
[332685190,1721448638245,-425.32394672,0.000139,2]
[332685191,1721448638258,-810.16228092,0.000139,2]
[332685192,1721448638270,-1007.44464735,0.000139,2]
[332685193,1721448638282,-1282.35042118,0.000139,2]
[332685194,1721448638295,-2881.26,0.000139,2]
[332685195,1721448638307,-31930.45870383,0.000139,2]
[332685196,1721448638316,-1668.0,0.000139,2]
[332685197,1721448638328,-1206.7,0.000139,2]
[332685198,1721448638338,-5825.0,0.000139,2]
[332685199,1721448638347,-1073.0,0.000139,2]
[332685200,1721448638358,-16560.85354647,0.000139,2]
[332685201,1721448638370,-1856.5631075,0.000139,2]
[332685202,1721448638436,-874.9,0.000139,2]
[332685203,1721448638448,-593.22494433,0.000139,2]
[332685204,1721448638468,-1140.06939969,0.000139,2]
[332685205,1721448638479,-3450.49798637,0.000139,2]
[332685206,1721448638491,-479.23585153,0.000139,2]
[332685207,1721448638502,-500.0,0.000139,2]
[332685208,1721448638515,-1391.18950319,0.000139,2]
[332685209,1721448638705,-29.2485037,0.000139,2]
[332685210,1721448638721,-775.44461026,0.000139,2]
[332685211,1721448638733,-729.17517403,0.000139,2]
[332685212,1721448638744,-475.82133345,0.000139,2]
[332685213,1721448638757,-320.03674283,0.000139,2]
[332685214,1721448638768,-1816.97355013,0.000139,2]
[332685215,1721448638780,-1656.96940033,0.000139,2]
[332685216,1721448638791,-1888.89310926,0.000139,2]
[332685217,1721448638802,-3163.29177813,0.000139,2]
[332685218,1721448638814,-1999.05404821,0.000139,2]
[332685219,1721448638826,-2199.22889,0.000139,2]
[332685220,1721448638840,-586.27968751,0.000139,2]
[332685221,1721448638862,-1803.52865084,0.000139,2]
[332685222,1721448638873,-300.32,0.000139,2]
[332685223,1721448638885,-19442.50619007,0.000139,2]
[332685224,1721448638897,-673.40945464,0.000139,2]
[332685228,1721448639603,-6667.8,0.000139,2]
[332685229,1721448639616,-2130.89120722,0.000139,2]
[332685230,1721448639628,-585.90710359,0.000139,2]
[332685231,1721448639813,-3892750.65857974,0.000139,2]
[332685232,1721448639823,-150.0,0.000139,2]
[332685233,1721448639833,-150.0,0.000139,2]
[332685234,1721448639842,-150.0,0.000139,2]
[332685235,1721448639852,-417.95,0.000139,2]
[332685236,1721448639861,-164.86,0.000139,2]
[332685238,1721448639871,-150.0,0.000139,2]
[332685240,1721448639881,-150.0,0.000139,2]
[332685242,1721448639891,-702.5,0.000139,2]
[332685244,1721448639915,-150.0,0.000139,2]
[332685246,1721448639924,-150.0,0.000139,2]
[332685248,1721448639934,-279.94061,0.000139,2]
[332685250,1721448639944,-279.94061,0.000139,2]
[332685252,1721448639953,-376.261181,0.000139,2]
[332685254,1721448639963,-376.261181,0.000139,2]
[332685256,1721448639972,-4089.247727,0.000139,2]
[332685258,1721448639982,-4089.247727,0.000139,2]
[332685259,1721448639991,-153.152115,0.000139,2]
[332685260,1721448640002,-194.068928,0.000139,2]
[332685261,1721448640012,-156.209921,0.000139,2]
[332685262,1721448640022,-194.068928,0.000139,2]
[332685263,1721448640032,-574.649934,0.000139,2]
[332685264,1721448640043,-574.649934,0.000139,2]
[332685265,1721448640054,-2684.780177,0.000139,2]
[332685266,1721448640068,-2684.780177,0.000139,2]
[332685267,1721448640077,-739.974446,0.000139,2]
[332685268,1721448640089,-739.974446,0.000139,2]
[332685269,1721448640100,-3699.095773,0.000139,2]
[332685270,1721448640112,-3699.095773,0.000139,2]
[332685271,1721448640122,-3699.095773,0.000139,2]
[332685272,1721448640133,-3699.095773,0.000139,2]
[332685273,1721448640144,-2684.780177,0.000139,2]
[332685274,1721448640154,-2684.780177,0.000139,2]
[332685275,1721448640165,-151.0,0.000139,2]
[332685276,1721448640175,-151.0,0.000139,2]
[332685277,1721448640184,-151.0,0.000139,2]
[332685278,1721448640194,-151.0,0.000139,2]
[332685279,1721448640203,-151.0,0.000139,2]
[332685280,1721448640213,-151.0,0.000139,2]
[332685281,1721448640223,-151.0,0.000139,2]
[332685282,1721448640232,-746.158848,0.000139,2]
[332685283,1721448640242,-746.158848,0.000139,2]
[332685284,1721448640252,-269.006686,0.000139,2]
[332685285,1721448640263,-269.006686,0.000139,2]
[332685286,1721448640273,-746.158848,0.000139,2]
[332685287,1721448640285,-746.158848,0.000139,2]
[332685288,1721448640295,-269.006686,0.000139,2]
[332685289,1721448640305,-269.006686,0.000139,2]
[332685290,1721448640315,-151.0,0.000139,2]
[332685291,1721448640325,-151.0,0.000139,2]
[332685292,1721448640335,-151.0,0.000139,2]
[332685293,1721448640346,-151.0,0.000139,2]
[332685294,1721448640355,-581.490465,0.000139,2]
[332685295,1721448640366,-151.0,0.000139,2]
[332685296,1721448640376,-581.490465,0.000139,2]
[332685297,1721448640385,-151.0,0.000139,2]
[332685298,1721448640394,-581.490465,0.000139,2]
[332685299,1721448640404,-287.048566,0.000139,2]
[332685300,1721448640413,-581.490465,0.000139,2]
[332685301,1721448640423,-15255.7376164,0.000139,2]
[332685302,1721448640433,-151.0,0.000139,2]
[332685303,1721448640444,-151.0,0.000139,2]
[332685304,1721448640454,-151.0,0.000139,2]
[332685305,1721448640464,-151.0,0.000139,2]
[332685306,1721448640474,-157.032191,0.000139,2]
[332685307,1721448640483,-151.0,0.000139,2]
[332685308,1721448640493,-186.299117,0.000139,2]
[332685309,1721448640503,-151.0,0.000139,2]
[332685310,1721448640513,-186.299117,0.000139,2]
[332685311,1721448640523,-186.299117,0.000139,2]
[332685312,1721448640533,-186.299117,0.000139,2]
[332685313,1721448640543,-151.0,0.000139,2]
[332685314,1721448640553,-151.0,0.000139,2]
[332685315,1721448640563,-151.0,0.000139,2]
[332685316,1721448640573,-151.0,0.000139,2]
[332685317,1721448640584,-151.0,0.000139,2]
[332685318,1721448640892,-151.0,0.000139,2]
[332685319,1721448640907,-4361.47015,0.000139,2]
[332685320,1721448640917,-4361.47015,0.000139,2]
[332685321,1721448640927,-151.0,0.000139,2]
[332685322,1721448640936,-151.0,0.000139,2]
[332685323,1721448640946,-359.466847,0.000139,2]
[332685324,1721448640956,-4361.47015,0.000139,2]
[332685325,1721448640966,-359.466847,0.000139,2]
[332685326,1721448640976,-4361.47015,0.000139,2]
[332685327,1721448640985,-727.369958,0.000139,2]
[332685328,1721448640995,-359.466847,0.000139,2]
[332685329,1721448641005,-727.369958,0.000139,2]
[332685330,1721448641017,-359.466847,0.000139,2]
[332685331,1721448641026,-727.369958,0.000139,2]
[332685332,1721448641036,-727.369958,0.000139,2]
[332685333,1721448641050,-472.631018,0.000139,2]
[332685334,1721448641060,-472.631018,0.000139,2]
[332685335,1721448641070,-472.631018,0.000139,2]
[332685336,1721448641079,-472.631018,0.000139,2]
[332685337,1721448641089,-151.0,0.000139,2]
[332685338,1721448641099,-151.0,0.000139,2]
[332685339,1721448641109,-278.693423,0.000139,2]
[332685340,1721448641120,-709.127874,0.000139,2]
[332685341,1721448641130,-709.127874,0.000139,2]
[332685342,1721448641140,-709.127874,0.000139,2]
[332685343,1721448641151,-709.127874,0.000139,2]
[332685344,1721448641160,-2636.789912,0.000139,2]
[332685345,1721448641170,-2636.789912,0.000139,2]
[332685346,1721448641180,-2636.789912,0.000139,2]
[332685347,1721448641190,-2636.789912,0.000139,2]
[332685348,1721448641199,-3000.0,0.000139,2]
[332685349,1721448641209,-151.0,0.000139,2]
[332685350,1721448641219,-151.0,0.000139,2]
[332685351,1721448641228,-151.0,0.000139,2]
[332685352,1721448641237,-151.0,0.000139,2]
[332685353,1721448641246,-151.0,0.000139,2]
[332685354,1721448641256,-151.0,0.000139,2]
[332685355,1721448641268,-151.0,0.000139,2]
[332685356,1721448641278,-156.02,0.0001399,2]
[332685357,1721448641291,-270.9098235,0.00013996,2]
[332685358,1721448641301,-723.2935214,0.00013996,2]
[332685359,1721448641311,-1557.47442856,0.00013999,2]
[332685360,1721448641320,-1338211.39619028,0.00014,2]
[332685361,1721448641331,-1534502.61248764,0.00014,2]
[332685362,1721448641341,-1136987.8944631,0.00014,2]
[332685363,1721448641351,-151.714431,0.00014,2]
[332685364,1721448641362,-151.0,0.00014,2]
[332685365,1721448641372,-151.0,0.00014,2]
[332685366,1721448641382,-151.0,0.00014,2]
[332685367,1721448641391,-151.0,0.00014,2]
[332685368,1721448641400,-151.0,0.00014,2]
[332685369,1721448641410,-151.0,0.00014,2]
[332685370,1721448641419,-151.0,0.00014,2]
[332685371,1721448641429,-2000.0,0.00014,2]
[332685372,1721448641438,-200.0,0.00014,2]
[332685373,1721448641448,-151.0,0.00014,2]
[332685374,1721448641458,-151.0,0.00014,2]
[332685375,1721448641468,-151.0,0.00014,2]
[332685376,1721448641477,-151.0,0.00014,2]
[332685377,1721448641487,-151.0,0.00014,2]
[332685378,1721448641497,-152.31576,0.00014,2]
[332685379,1721448641507,-152.526013,0.00014,2]
[332685380,1721448641517,-205.311159,0.00014,2]
[332685381,1721448641527,-151.0,0.00014,2]
[332685382,1721448641537,-151.0,0.00014,2]
[332685383,1721448641546,-154.081731,0.00014,2]
[332685384,1721448641556,-151.0,0.00014,2]
[332685385,1721448641566,-151.0,0.00014,2]
[332685386,1721448641576,-151.0,0.00014,2]
[332685387,1721448641586,-152.58496,0.00014,2]
[332685388,1721448641595,-719.318139,0.00014,2]
[332685389,1721448641605,-719.318139,0.00014,2]
[332685390,1721448641615,-719.318139,0.00014,2]
[332685391,1721448641625,-719.318139,0.00014,2]
[332685392,1721448641645,-719.318139,0.00014,2]
[332685393,1721448641665,-719.318139,0.00014,2]
[332685394,1721448641675,-153.566615,0.00014,2]
[332685395,1721448641685,-175.63925,0.00014,2]
[332685396,1721448641694,-175.63925,0.00014,2]
[332685397,1721448641704,-175.63925,0.00014,2]
[332685398,1721448641714,-571.913984,0.00014,2]
[332685399,1721448641724,-571.913984,0.00014,2]
[332685400,1721448641734,-571.913984,0.00014,2]
[332685401,1721448641744,-175.63925,0.00014,2]
[332685402,1721448641754,-175.63925,0.00014,2]
[332685403,1721448641764,-175.63925,0.00014,2]
[332685404,1721448641774,-5592.0,0.00014,2]
[332685405,1721448641784,-571.913984,0.00014,2]
[332685406,1721448641793,-571.913984,0.00014,2]
[332685407,1721448641803,-571.913984,0.00014,2]
[332685408,1721448641813,-207.384351,0.00014,2]
[332685409,1721448641822,-151.0,0.00014,2]
[332685410,1721448641832,-151.0,0.00014,2]
[332685411,1721448641841,-151.0,0.00014,2]
[332685412,1721448641851,-153.315921,0.00014,2]
[332685413,1721448641861,-151.0,0.00014,2]
[332685414,1721448641870,-151.0,0.00014,2]
[332685415,1721448641880,-151.0,0.00014,2]
[332685416,1721448641890,-151.0,0.00014,2]
[332685417,1721448641900,-151.0,0.00014,2]
[332685418,1721448641910,-151.0,0.00014,2]
[332685419,1721448641920,-151.0,0.00014,2]
[332685420,1721448641931,-1413.092858,0.00014,2]
[332685421,1721448641942,-151.0,0.00014,2]
[332685422,1721448641952,-1413.092858,0.00014,2]
[332685423,1721448641963,-1413.092858,0.00014,2]
[332685424,1721448641973,-1413.092858,0.00014,2]
[332685425,1721448641983,-390.289859,0.00014,2]
[332685426,1721448641993,-390.289859,0.00014,2]
[332685427,1721448642002,-390.289859,0.00014,2]
[332685428,1721448642012,-1413.092858,0.00014,2]
[332685429,1721448642022,-390.289859,0.00014,2]
[332685430,1721448642032,-1413.092858,0.00014,2]
[332685431,1721448642042,-1413.092858,0.00014,2]
[332685432,1721448642052,-1413.092858,0.00014,2]
[332685433,1721448642062,-390.289859,0.00014,2]
[332685434,1721448642071,-390.289859,0.00014,2]
[332685435,1721448642081,-390.289859,0.00014,2]
[332685436,1721448642091,-390.289859,0.00014,2]
[332685437,1721448642101,-151.0,0.00014,2]
[332685438,1721448642111,-151.0,0.00014,2]
[332685439,1721448642120,-304.329082,0.00014,2]
[332685440,1721448642130,-151.0,0.00014,2]
[332685441,1721448642140,-304.329082,0.00014,2]
[332685442,1721448642149,-151.0,0.00014,2]
[332685443,1721448642159,-304.329082,0.00014,2]
[332685444,1721448642168,-304.329082,0.00014,2]
[332685445,1721448642179,-151.0,0.00014,2]
[332685446,1721448642190,-151.0,0.00014,2]
[332685447,1721448642199,-151.0,0.00014,2]
[332685448,1721448642210,-304.329082,0.00014,2]
[332685449,1721448642221,-151.0,0.00014,2]
[332685450,1721448642232,-304.329082,0.00014,2]
[332685452,1721448642245,-304.329082,0.00014,2]
[332685453,1721448642255,-304.329082,0.00014,2]
[332685454,1721448642265,-151.0,0.00014,2]
[332685455,1721448642275,-152.912649,0.00014,2]
[332685456,1721448642287,-2243.146137,0.00014,2]
[332685457,1721448642297,-2243.146137,0.00014,2]
[332685458,1721448642307,-2243.146137,0.00014,2]
[332685459,1721448642318,-2243.146137,0.00014,2]
[332685460,1721448642328,-2243.146137,0.00014,2]
[332685461,1721448642339,-2720.201634,0.00014,2]
[332685462,1721448642348,-2720.201634,0.00014,2]
[332685463,1721448642359,-2720.201634,0.00014,2]
[332685464,1721448642368,-2243.146137,0.00014,2]
[332685465,1721448642378,-2720.201634,0.00014,2]
[332685466,1721448642387,-2243.146137,0.00014,2]
[332685467,1721448642397,-2720.201634,0.00014,2]
[332685469,1721448642406,-2243.146137,0.00014,2]
[332685471,1721448642416,-2243.146137,0.00014,2]
[332685472,1721448642425,-2243.146137,0.00014,2]
[332685474,1721448642435,-2720.201634,0.00014,2]
[332685476,1721448642445,-2720.201634,0.00014,2]
[332685478,1721448642455,-2720.201634,0.00014,2]
[332685481,1721448642464,-2720.201634,0.00014,2]
[332685483,1721448642473,-2720.201634,0.00014,2]
[332685485,1721448642483,-151.0,0.00014,2]
[332685487,1721448642492,-151.0,0.00014,2]
[332685489,1721448642502,-151.0,0.00014,2]
[332685491,1721448642511,-151.0,0.00014,2]
[332685493,1721448642521,-151.0,0.00014,2]
[332685495,1721448642531,-151.0,0.00014,2]
[332685497,1721448642541,-259.992339,0.00014,2]
[332685499,1721448642551,-151.0,0.00014,2]
[332685501,1721448642561,-151.857058,0.00014,2]
[332685503,1721448642571,-1838.461,0.00014,2]
[332685505,1721448642581,-151.0,0.00014,2]
[332685507,1721448642592,-151.0,0.00014,2]
[332685509,1721448642602,-2000.0,0.00014,2]
[332685511,1721448642612,-151.0,0.00014,2]
[332685513,1721448642622,-151.0,0.00014,2]
[332685515,1721448642632,-368.245,0.00014,2]
[332685517,1721448642642,-151.0,0.00014,2]
[332685519,1721448642652,-1681.543,0.00014,2]
[332685521,1721448642662,-586.448156,0.00014,2]
[332685523,1721448642671,-395.079714,0.00014,2]
[332685526,1721448642682,-698.497015,0.00014,2]
[332685528,1721448642691,-586.448156,0.00014,2]
[332685530,1721448642701,-200.0,0.00014,2]
[332685532,1721448642711,-395.079714,0.00014,2]
[332685534,1721448642720,-698.497015,0.00014,2]
[332685536,1721448642730,-586.448156,0.00014,2]
[332685537,1721448642740,-1253.0,0.00014,2]
[332685539,1721448642749,-395.079714,0.00014,2]
[332685541,1721448642759,-698.497015,0.00014,2]
[332685543,1721448642769,-586.448156,0.00014,2]
[332685545,1721448642779,-395.079714,0.00014,2]
[332685547,1721448642789,-698.497015,0.00014,2]
[332685548,1721448642798,-586.448156,0.00014,2]
[332685549,1721448642808,-395.079714,0.00014,2]
[332685550,1721448642817,-698.497015,0.00014,2]
[332685551,1721448642827,-395.079714,0.00014,2]
[332685552,1721448642836,-395.079714,0.00014,2]
[332685553,1721448642846,-698.497015,0.00014,2]
[332685554,1721448642858,-395.079714,0.00014,2]
[332685555,1721448642868,-698.497015,0.00014,2]
[332685556,1721448642879,-586.448156,0.00014,2]
[332685557,1721448642888,-395.079714,0.00014,2]
[332685558,1721448642898,-698.497015,0.00014,2]
[332685559,1721448642907,-586.448156,0.00014,2]
[332685560,1721448642917,-698.497015,0.00014,2]
[332685561,1721448642928,-395.079714,0.00014,2]
[332685562,1721448642938,-586.448156,0.00014,2]
[332685563,1721448642947,-698.497015,0.00014,2]
[332685564,1721448642957,-586.448156,0.00014,2]
[332685565,1721448642967,-586.448156,0.00014,2]
[332685566,1721448642976,-454.1,0.00014,2]
[332685567,1721448642985,-813.458,0.00014,2]
[332685568,1721448642995,-491.579,0.00014,2]
[332685569,1721448643004,-226.257,0.00014,2]
[332685570,1721448643015,-628.393,0.00014,2]
[332685571,1721448643025,-842.58,0.00014,2]
[332685572,1721448643035,-345.526166,0.00014,2]
[332685573,1721448643045,-345.526166,0.00014,2]
[332685574,1721448643054,-345.526166,0.00014,2]
[332685575,1721448643064,-345.526166,0.00014,2]
[332685576,1721448643073,-345.526166,0.00014,2]
[332685577,1721448643083,-2392.092,0.00014,2]
[332685578,1721448643092,-556.722,0.00014,2]
[332685579,1721448643102,-152.143,0.00014,2]
[332685580,1721448643111,-830.254119,0.00014,2]
[332685581,1721448643121,-345.526166,0.00014,2]
[332685582,1721448643130,-345.526166,0.00014,2]
[332685583,1721448643139,-345.526166,0.00014,2]
[332685584,1721448643149,-830.254119,0.00014,2]
[332685585,1721448643159,-345.526166,0.00014,2]
[332685586,1721448643169,-830.254119,0.00014,2]
[332685587,1721448643178,-830.254119,0.00014,2]
[332685588,1721448643187,-345.526166,0.00014,2]
[332685589,1721448643196,-830.254119,0.00014,2]
[332685590,1721448643205,-833.23,0.00014,2]
[332685591,1721448643214,-833.23,0.00014,2]
[332685592,1721448643224,-830.254119,0.00014,2]
[332685593,1721448643233,-830.254119,0.00014,2]
[332685594,1721448643242,-830.254119,0.00014,2]
[332685595,1721448643252,-830.254119,0.00014,2]
[332685596,1721448643262,-833.23,0.00014,2]
[332685597,1721448643272,-830.254119,0.00014,2]
[332685598,1721448643281,-833.23,0.00014,2]
[332685599,1721448643293,-833.23,0.00014,2]
[332685600,1721448643303,-3295.968,0.00014,2]
[332685601,1721448643313,-838.54,0.00014,2]
[332685602,1721448643323,-663.253468,0.00014,2]
[332685603,1721448643402,-663.253468,0.00014,2]
[332685604,1721448643411,-663.253468,0.00014,2]
[332685605,1721448643421,-663.253468,0.00014,2]
[332685606,1721448643430,-663.253468,0.00014,2]
[332685607,1721448643439,-1993.0,0.00014,2]
[332685608,1721448643450,-276.191,0.00014,2]
[332685609,1721448643459,-276.191,0.00014,2]
[332685610,1721448643468,-276.191,0.00014,2]
[332685611,1721448643477,-276.191,0.00014,2]
[332685612,1721448643487,-276.191,0.00014,2]
[332685613,1721448643496,-663.253468,0.00014,2]
[332685614,1721448643506,-663.253468,0.00014,2]
[332685615,1721448643515,-663.253468,0.00014,2]
[332685616,1721448643524,-663.253468,0.00014,2]
[332685617,1721448643533,-663.253468,0.00014,2]
[332685618,1721448643542,-276.191,0.00014,2]
[332685619,1721448643552,-276.191,0.00014,2]
[332685620,1721448643561,-276.191,0.00014,2]
[332685621,1721448643571,-276.191,0.00014,2]
[332685622,1721448643580,-276.191,0.00014,2]
[332685623,1721448643590,-419.95,0.00014,2]
[332685624,1721448643599,-449.177909,0.00014,2]
[332685625,1721448643608,-449.177909,0.00014,2]
[332685626,1721448643618,-449.177909,0.00014,2]
[332685627,1721448643627,-449.177909,0.00014,2]
[332685628,1721448643636,-419.95,0.00014,2]
[332685629,1721448643646,-449.177909,0.00014,2]
[332685630,1721448643655,-419.95,0.00014,2]
[332685631,1721448643664,-449.177909,0.00014,2]
[332685632,1721448643674,-449.177909,0.00014,2]
[332685633,1721448643683,-449.177909,0.00014,2]
[332685634,1721448643693,-449.177909,0.00014,2]
[332685635,1721448643702,-449.177909,0.00014,2]
[332685636,1721448643712,-419.95,0.00014,2]
[332685637,1721448643721,-210.480891,0.00014,2]
[332685638,1721448643730,-384.925276,0.00014,2]
[332685639,1721448643740,-384.925276,0.00014,2]
[332685640,1721448643749,-384.925276,0.00014,2]
[332685641,1721448643758,-384.925276,0.00014,2]
[332685642,1721448643769,-384.925276,0.00014,2]
[332685643,1721448643778,-384.925276,0.00014,2]
[332685644,1721448643787,-384.925276,0.00014,2]
[332685645,1721448643796,-384.925276,0.00014,2]
[332685646,1721448643805,-384.925276,0.00014,2]
[332685647,1721448643815,-384.925276,0.00014,2]
[332685648,1721448643824,-150.56,0.00014,2]
[332685649,1721448643834,-151.0,0.00014,2]
[332685650,1721448643843,-150.0,0.00014,2]
[332685651,1721448643852,-241.37,0.00014,2]
[332685652,1721448643862,-151.0,0.00014,2]
[332685653,1721448643871,-151.0,0.00014,2]
[332685654,1721448643881,-418.05,0.00014,2]
[332685655,1721448643890,-151.0,0.00014,2]
[332685656,1721448643899,-151.0,0.00014,2]
[332685657,1721448643908,-151.0,0.00014,2]
[332685658,1721448643918,-151.0,0.00014,2]
[332685659,1721448643930,-151.0,0.00014,2]
[332685660,1721448643940,-151.0,0.00014,2]
[332685661,1721448643950,-217.498061,0.00014,2]
[332685662,1721448643959,-151.0,0.00014,2]
[332685663,1721448643968,-208.592374,0.00014,2]
[332685664,1721448643977,-151.0,0.00014,2]
[332685665,1721448643987,-151.0,0.00014,2]
[332685666,1721448643997,-151.0,0.00014,2]
[332685667,1721448644006,-273.441722,0.00014,2]
[332685668,1721448644017,-151.0,0.00014,2]
[332685669,1721448644027,-151.0,0.00014,2]
[332685670,1721448644036,-151.0,0.00014,2]
[332685671,1721448644046,-151.0,0.00014,2]
[332685672,1721448644055,-151.0,0.00014,2]
[332685673,1721448644064,-151.0,0.00014,2]
[332685674,1721448644074,-235.674092,0.00014,2]
[332685675,1721448644083,-235.674092,0.00014,2]
[332685676,1721448644092,-235.674092,0.00014,2]
[332685677,1721448644102,-819.246848,0.00014,2]
[332685678,1721448644111,-235.674092,0.00014,2]